fUSD/lending_fUSD_20240423
["ID","MTS","AMOUNT","RATE_DAILY","PERIOD"]
[323317447,1713887448160,-500.0,0.00012457,2]
[323317448,1713887448170,-500.0,0.00012457,2]
[323317449,1713887448179,-500.0,0.00012457,2]
[323317450,1713887448189,-500.0,0.00012457,2]
[323317451,1713887448198,-500.0,0.00012457,2]
[323317452,1713887448207,-604.26,0.00012457,2]
[323317453,1713887448217,-500.0,0.00012457,2]
[323317454,1713887448226,-584.57,0.00012457,2]
[323317455,1713887448235,-500.0,0.00012457,2]
[323317456,1713887448245,-500.0,0.00012457,2]
[323317457,1713887448254,-500.0,0.00012457,2]
[323317458,1713887448264,-822.56,0.00012457,2]
[323317459,1713887448273,-500.0,0.00012457,2]
[323317460,1713887448283,-663.2,0.00012457,2]
[323317461,1713887448292,-500.0,0.00012457,2]
[323317462,1713887448302,-528.85,0.00012457,2]
[323317463,1713887448311,-1637.05,0.00012457,2]
[323317464,1713887448321,-500.0,0.00012457,2]
[323317465,1713887448331,-500.0,0.00012457,2]
[323317466,1713887448340,-500.0,0.00012457,2]
[323317467,1713887448349,-564.28,0.00012457,2]
[323317468,1713887448358,-1592.52,0.00012457,2]
[323317469,1713887448369,-500.0,0.00012457,2]
[323317470,1713887448383,-5609.14,0.00012457,2]
[323317471,1713887448393,-1052.61,0.00012457,2]
[323317472,1713887448402,-276.02,0.00012457,2]
[323317473,1713887448412,-500.0,0.00012457,2]
[323317474,1713887448422,-1298.21,0.00012457,2]
[323317475,1713887448431,-536.04,0.00012457,2]
[323317476,1713887448440,-1110.45,0.00012457,2]
[323317477,1713887448450,-701.06,0.00012457,2]
[323317478,1713887448460,-500.0,0.00012457,2]
[323317479,1713887448469,-629.05,0.00012457,2]
[323317480,1713887448478,-500.0,0.00012457,2]
[323317481,1713887448487,-16670.81,0.00012457,2]
[323317482,1713887448496,-1717.41,0.00012457,2]
[323317483,1713887448505,-2081.33,0.00012457,2]
[323317484,1713887448514,-295.43,0.00012457,2]
[323317485,1713887448524,-500.0,0.00012457,2]
[323317486,1713887448535,-500.0,0.00012457,2]
[323317487,1713887448545,-759.45,0.00012457,2]
[323317488,1713887448555,-1136.03,0.00012457,2]
[323317489,1713887448564,-500.0,0.00012457,2]
[323317490,1713887448574,-500.0,0.00012457,2]
[323317491,1713887448586,-841.41,0.00012457,2]
[323317492,1713887448595,-500.0,0.00012457,2]
[323317493,1713887448605,-500.0,0.00012457,2]
[323317494,1713887448615,-724.66,0.00012457,2]
[323317495,1713887448624,-1843.38,0.00012457,2]
[323317496,1713887448633,-716.57,0.00012457,2]
[323317497,1713887448642,-551.55,0.00012457,2]
[323317498,1713887448651,-941.0,0.00012457,2]
[323317499,1713887448660,-500.0,0.00012457,2]
[323317500,1713887448671,-500.0,0.00012457,2]
[323317501,1713887448680,-500.0,0.00012457,2]
[323317502,1713887448690,-500.0,0.00012457,2]
[323317503,1713887448699,-599.45,0.00012457,2]
[323317504,1713887448707,-801.62,0.00012457,2]
[323317505,1713887448717,-500.0,0.00012457,2]
[323317506,1713887448725,-500.0,0.00012457,2]
[323317507,1713887448735,-500.0,0.00012457,2]
[323317508,1713887448744,-500.0,0.00012457,2]
[323317509,1713887448754,-890.0,0.00012457,2]
[323317510,1713887448763,-500.0,0.00012457,2]
[323317511,1713887448772,-500.0,0.00012457,2]
[323317512,1713887448782,-644.63,0.00012457,2]
[323317513,1713887448791,-782.33,0.00012457,2]
[323317514,1713887448801,-1215.67,0.00012457,2]
[323317515,1713887448810,-528.62,0.00012457,2]
[323317516,1713887448820,-500.0,0.00012457,2]
[323317517,1713887448829,-500.0,0.00012457,2]
[323317518,1713887448838,-1527.22,0.00012457,2]
[323317519,1713887448848,-565.34,0.00012457,2]
[323317520,1713887448858,-500.0,0.00012457,2]
[323317521,1713887448867,-500.0,0.00012457,2]
[323317522,1713887448876,-2286.68,0.00012457,2]
[323317523,1713887448885,-802.19,0.00012457,2]
[323317524,1713887448894,-500.0,0.00012457,2]
[323317525,1713887448904,-500.0,0.00012457,2]
[323317526,1713887448913,-839.32,0.00012457,2]
[323317527,1713887448927,-500.0,0.00012457,2]
[323317528,1713887448937,-524.85,0.00012457,2]
[323317529,1713887448947,-500.0,0.00012457,2]
[323317530,1713887448956,-500.0,0.00012457,2]
[323317531,1713887448966,-640.43,0.00012457,2]
[323317532,1713887448975,-617.6,0.00012457,2]
[323317533,1713887448984,-1874.24,0.00012457,2]
[323317534,1713887448993,-683.92635897,0.00012484,2]
[323317535,1713887449003,-251.6194917,0.000125,2]
[323317536,1713887449012,-6944.86653751,0.00012519,2]
[323317537,1713887449022,-400.0,0.00012531,2]
[323317538,1713887449032,-1398.81,0.00012555,2]
[323317539,1713887449041,-4352.87,0.00012555,2]
[323317540,1713887449051,-346.86,0.00012555,2]
[323317541,1713887449061,-3447.72,0.00012555,2]
[323317542,1713887449070,-632.27,0.00012555,2]
[323317543,1713887449079,-500.0,0.00012557,2]
[323317544,1713887449089,-500.0,0.00012557,2]
[323317545,1713887449098,-500.0,0.00012557,2]
[323317546,1713887449108,-500.0,0.00012557,2]
[323317547,1713887449118,-500.0,0.00012557,2]
[323317548,1713887449127,-500.0,0.00012557,2]
[323317549,1713887449137,-500.0,0.00012557,2]
[323317550,1713887449146,-500.0,0.00012557,2]
[323317551,1713887449155,-552.08,0.00012557,2]
[323317552,1713887449165,-500.0,0.00012557,2]
[323317553,1713887449177,-209.00393229,0.00012557,2]
[323317554,1713887449186,-500.0,0.00012557,2]
[323317555,1713887449195,-500.0,0.00012557,2]
[323317556,1713887449204,-500.0,0.00012557,2]
[323317557,1713887449214,-500.0,0.00012557,2]
[323317558,1713887449223,-500.0,0.00012557,2]
[323317559,1713887449232,-500.0,0.00012557,2]
[323317560,1713887449242,-646.97,0.00012557,2]
[323317561,1713887449252,-500.0,0.00012557,2]
[323317562,1713887449262,-277.077886,0.00012557,2]
[323317563,1713887449271,-579.86,0.00012557,2]
[323317564,1713887449280,-500.0,0.00012557,2]
[323317565,1713887449289,-500.0,0.00012557,2]
[323317566,1713887449299,-500.0,0.00012557,2]
[323317567,1713887449308,-500.0,0.00012557,2]
[323317568,1713887449318,-508.73,0.00012557,2]
[323317569,1713887449327,-744.99,0.00012557,2]
[323317570,1713887449336,-1035.46,0.00012557,2]
[323317571,1713887449345,-500.0,0.00012557,2]
[323317572,1713887449355,-500.0,0.00012557,2]
[323317573,1713887449365,-524.76,0.00012557,2]
[323317574,1713887449379,-500.0,0.00012557,2]
[323317575,1713887449388,-500.0,0.00012557,2]
[323317576,1713887449397,-500.0,0.00012557,2]
[323317577,1713887449407,-500.0,0.00012557,2]
[323317578,1713887449417,-500.0,0.00012557,2]
[323317579,1713887449428,-500.0,0.00012557,2]
[323317580,1713887449438,-500.0,0.00012557,2]
[323317581,1713887449448,-500.0,0.00012557,2]
[323317582,1713887449458,-500.0,0.00012557,2]
[323317583,1713887449468,-500.0,0.00012557,2]
[323317584,1713887449477,-500.0,0.00012557,2]
[323317585,1713887449486,-500.0,0.00012557,2]
[323317586,1713887449495,-788.31,0.00012557,2]
[323317587,1713887449504,-500.0,0.00012557,2]
[323317588,1713887449515,-500.0,0.00012557,2]
[323317589,1713887449525,-500.0,0.00012557,2]
[323317590,1713887449535,-212.42,0.00012557,2]
[323317591,1713887449544,-500.0,0.00012557,2]
[323317592,1713887449554,-500.0,0.00012557,2]
[323317593,1713887449563,-500.0,0.00012557,2]
[323317594,1713887449572,-182.1,0.00012557,2]
[323317595,1713887449582,-516.4,0.00012557,2]
[323317596,1713887449592,-500.0,0.00012557,2]
[323317597,1713887449601,-500.0,0.00012557,2]
[323317598,1713887449610,-500.0,0.00012557,2]
[323317599,1713887449620,-500.0,0.00012557,2]
[323317600,1713887449629,-6944.86653751,0.00012583,2]
[323317601,1713887449639,-150.0,0.00012608,2]
[323317602,1713887449648,-150.0,0.00012609,2]
[323317603,1713887449658,-150.0,0.0001261,2]
[323317604,1713887449667,-6944.86653751,0.00012646,2]
[323317605,1713887449677,-150.0,0.00012658,2]
[323317606,1713887449686,-150.0,0.0001266,2]
[323317607,1713887449695,-150.0,0.00012668,2]
[323317608,1713887449705,-150.0,0.00012673,2]
[323317609,1713887449714,-150.0,0.00012674,2]
[323317610,1713887449723,-683.92635897,0.00012685,2]
[323317611,1713887449733,-150.0,0.00012686,2]
[323317612,1713887449742,-150.0,0.00012694,2]
[323317613,1713887449751,-150.0,0.000127,2]
[323317614,1713887449760,-150.0,0.00012706,2]
[323317615,1713887449770,-150.0,0.00012707,2]
[323317616,1713887449779,-6944.86653751,0.0001271,2]
[323317617,1713887449788,-150.0,0.0001271,2]
[323317618,1713887449797,-150.0,0.00012711,2]
[323317619,1713887449807,-150.0,0.00012716,2]
[323317620,1713887449816,-254.91292133,0.00012721,2]
[323317621,1713887449825,-150.0,0.00012722,2]
[323317622,1713887449834,-150.0,0.00012723,2]
[323317623,1713887449844,-150.0,0.00012724,2]
[323317624,1713887449853,-150.0,0.00012724,2]
[323317625,1713887449862,-150.0,0.00012726,2]
[323317626,1713887449871,-150.0,0.00012728,2]
[323317627,1713887449880,-500.0,0.0001273,2]
[323317628,1713887449889,-500.0,0.0001273,2]
[323317629,1713887449899,-500.0,0.0001273,2]
[323317630,1713887449908,-500.0,0.0001273,2]
[323317631,1713887449917,-500.0,0.0001273,2]
[323317632,1713887449928,-500.0,0.0001273,2]
[323317633,1713887449937,-500.0,0.0001273,2]
[323317634,1713887449946,-500.0,0.0001273,2]
[323317635,1713887449955,-1150.38,0.0001273,2]
[323317636,1713887449964,-500.0,0.0001273,2]
[323317637,1713887449973,-500.0,0.0001273,2]
[323317638,1713887449983,-892.32,0.0001273,2]
[323317639,1713887449993,-500.0,0.0001273,2]
[323317640,1713887450002,-973.47,0.0001273,2]
[323317641,1713887450011,-500.0,0.0001273,2]
[323317642,1713887450021,-694.86,0.0001273,2]
[323317643,1713887450030,-1020.52,0.0001273,2]
[323317644,1713887450040,-500.0,0.0001273,2]
[323317645,1713887450049,-500.0,0.0001273,2]
[323317646,1713887450059,-772.03,0.0001273,2]
[323317647,1713887450068,-500.0,0.0001273,2]
[323317648,1713887450077,-500.0,0.0001273,2]
[323317649,1713887450087,-852.66,0.0001273,2]
[323317650,1713887450096,-2754.38,0.0001273,2]
[323317651,1713887450106,-542.05,0.0001273,2]
[323317652,1713887450115,-500.0,0.0001273,2]
[323317653,1713887450124,-626.49,0.0001273,2]
[323317654,1713887450134,-500.0,0.0001273,2]
[323317655,1713887450144,-641.24,0.0001273,2]
[323317656,1713887450153,-586.01,0.0001273,2]
[323317657,1713887450163,-504.85,0.0001273,2]
[323317658,1713887450172,-500.0,0.0001273,2]
[323317659,1713887450181,-500.0,0.0001273,2]
[323317660,1713887450191,-945.53,0.0001273,2]
[323317661,1713887450201,-620.29,0.0001273,2]
[323317662,1713887450211,-2440.68,0.0001273,2]
[323317663,1713887450220,-673.0,0.0001273,2]
[323317664,1713887450230,-782.03,0.0001273,2]
[323317665,1713887450240,-603.89,0.0001273,2]
[323317666,1713887450252,-500.0,0.0001273,2]
[323317667,1713887450262,-705.57,0.0001273,2]
[323317668,1713887450272,-4417.31,0.0001273,2]
[323317669,1713887450281,-500.0,0.0001273,2]
[323317670,1713887450292,-592.3,0.0001273,2]
[323317671,1713887450301,-2093.36,0.0001273,2]
[323317672,1713887450311,-919.39,0.0001273,2]
[323317673,1713887450320,-500.0,0.0001273,2]
[323317674,1713887450329,-2589.04,0.0001273,2]
[323317675,1713887450338,-3290.76,0.0001273,2]
[323317676,1713887450347,-500.0,0.0001273,2]
[323317677,1713887450355,-1302.29,0.0001273,2]
[323317678,1713887450364,-1598.18,0.0001273,2]
[323317679,1713887450379,-980.49,0.0001273,2]
[323317680,1713887450388,-686.22,0.0001273,2]
[323317681,1713887450398,-500.0,0.0001273,2]
[323317682,1713887450407,-500.0,0.0001273,2]
[323317683,1713887450418,-1033.02,0.0001273,2]
[323317684,1713887450428,-500.0,0.0001273,2]
[323317685,1713887450438,-1094.42,0.0001273,2]
[323317686,1713887450448,-554.09,0.0001273,2]
[323317687,1713887450458,-555.78,0.0001273,2]
[323317688,1713887450468,-500.0,0.0001273,2]
[323317689,1713887450478,-548.29,0.0001273,2]
[323317690,1713887450488,-550.51,0.0001273,2]
[323317691,1713887450498,-500.0,0.0001273,2]
[323317692,1713887450508,-500.0,0.0001273,2]
[323317693,1713887450518,-824.33,0.0001273,2]
[323317694,1713887450528,-500.0,0.0001273,2]
[323317695,1713887450537,-1492.51,0.0001273,2]
[323317696,1713887450547,-500.0,0.0001273,2]
[323317697,1713887450557,-500.0,0.0001273,2]
[323317698,1713887450568,-1409.19,0.0001273,2]
[323317699,1713887450578,-500.0,0.0001273,2]
[323317700,1713887450588,-769.3,0.0001273,2]
[323317701,1713887450598,-597.98,0.0001273,2]
[323317702,1713887450609,-3661.62,0.0001273,2]
[323317703,1713887450619,-500.0,0.0001273,2]
[323317704,1713887450628,-500.0,0.0001273,2]
[323317705,1713887450638,-673.62,0.0001273,2]
[323317706,1713887450648,-13284.09,0.0001273,2]
[323317707,1713887450657,-2974.97,0.0001273,2]
[323317708,1713887450667,-1009.34,0.0001273,2]
[323317709,1713887450678,-602.21,0.00012731,2]
[323317710,1713887450688,-500.0,0.00012731,2]
[323317711,1713887450697,-500.0,0.00012731,2]
[323317712,1713887450707,-639.27,0.00012731,2]
[323317713,1713887450716,-500.0,0.00012731,2]
[323317714,1713887450726,-500.0,0.00012731,2]
[323317715,1713887450735,-763.08,0.00012731,2]
[323317716,1713887450745,-500.0,0.00012731,2]
[323317717,1713887450755,-233.77,0.00012731,2]
[323317718,1713887450764,-624.82,0.00012731,2]
[323317719,1713887450774,-611.86,0.00012731,2]
[323317720,1713887450784,-500.0,0.00012731,2]
[323317721,1713887450794,-528.75,0.00012731,2]
[323317722,1713887450806,-500.0,0.00012731,2]
[323317723,1713887450817,-500.0,0.00012731,2]
[323317724,1713887450827,-500.0,0.00012731,2]
[323317725,1713887450837,-500.0,0.00012731,2]
[323317726,1713887450847,-500.0,0.00012731,2]
[323317727,1713887450857,-500.0,0.00012731,2]
[323317728,1713887450867,-500.0,0.00012731,2]
[323317729,1713887450877,-500.0,0.00012731,2]
[323317730,1713887450887,-500.0,0.00012731,2]
[323317731,1713887450897,-500.0,0.00012731,2]
[323317732,1713887450907,-531.77,0.00012731,2]
[323317733,1713887450916,-500.0,0.00012731,2]
[323317734,1713887450929,-500.0,0.00012731,2]
[323317735,1713887450939,-500.0,0.00012731,2]
[323317736,1713887450949,-500.0,0.00012731,2]
[323317737,1713887450958,-500.0,0.00012731,2]
[323317738,1713887450969,-500.0,0.00012731,2]
[323317739,1713887450979,-604.26,0.00012731,2]
[323317740,1713887450988,-500.0,0.00012731,2]
[323317741,1713887450998,-584.57,0.00012731,2]
[323317742,1713887451008,-500.0,0.00012731,2]
[323317743,1713887451018,-500.0,0.00012731,2]
[323317744,1713887451028,-318.3,0.00012731,2]
[323317745,1713887451038,-822.56,0.00012731,2]
[323317746,1713887451048,-500.0,0.00012731,2]
[323317747,1713887451058,-663.2,0.00012731,2]
[323317748,1713887451068,-500.0,0.00012731,2]
[323317749,1713887451078,-528.85,0.00012731,2]
[323317750,1713887451089,-1637.05,0.00012731,2]
[323317751,1713887451099,-500.0,0.00012731,2]
[323317752,1713887451109,-500.0,0.00012731,2]
[323317753,1713887451119,-500.0,0.00012731,2]
[323317754,1713887451129,-564.28,0.00012731,2]
[323317755,1713887451139,-1592.52,0.00012731,2]
[323317756,1713887451149,-500.0,0.00012731,2]
[323317757,1713887451158,-5609.14,0.00012731,2]
[323317758,1713887451167,-1052.61,0.00012731,2]
[323317759,1713887451180,-500.0,0.00012731,2]
[323317760,1713887451189,-1298.21,0.00012731,2]
[323317761,1713887451198,-536.04,0.00012731,2]
[323317762,1713887451210,-1110.45,0.00012731,2]
[323317763,1713887451220,-701.06,0.00012731,2]
[323317764,1713887451231,-500.0,0.00012731,2]
[323317765,1713887451242,-629.05,0.00012731,2]
[323317766,1713887451252,-408.50946328,0.00012731,2]
[323317767,1713887451263,-16670.81,0.00012731,2]
[323317768,1713887451274,-1717.41,0.00012731,2]
[323317769,1713887451284,-2081.33,0.00012731,2]
[323317770,1713887451294,-500.0,0.00012731,2]
[323317771,1713887451305,-500.0,0.00012731,2]
[323317772,1713887451315,-759.45,0.00012731,2]
[323317773,1713887451325,-1136.03,0.00012731,2]
[323317774,1713887451335,-500.0,0.00012731,2]
[323317775,1713887451345,-500.0,0.00012731,2]
[323317776,1713887451354,-841.41,0.00012731,2]
[323317777,1713887451365,-500.0,0.00012731,2]
[323317778,1713887451379,-500.0,0.00012731,2]
[323317779,1713887451389,-724.66,0.00012731,2]
[323317780,1713887451399,-1843.38,0.00012731,2]
[323317781,1713887451409,-716.57,0.00012731,2]
[323317782,1713887451419,-551.55,0.00012731,2]
[323317783,1713887451430,-941.0,0.00012731,2]
[323317784,1713887451440,-500.0,0.00012731,2]
[323317785,1713887451452,-500.0,0.00012731,2]
[323317786,1713887451463,-500.0,0.00012731,2]
[323317787,1713887451473,-500.0,0.00012731,2]
[323317788,1713887451483,-599.45,0.00012731,2]
[323317789,1713887451493,-801.62,0.00012731,2]
[323317790,1713887451503,-500.0,0.00012731,2]
[323317791,1713887451513,-500.0,0.00012731,2]
[323317792,1713887451523,-500.0,0.00012731,2]
[323317793,1713887451533,-500.0,0.00012731,2]
[323317794,1713887451544,-890.0,0.00012731,2]
[323317795,1713887451554,-500.0,0.00012731,2]
[323317796,1713887451564,-500.0,0.00012731,2]
[323317797,1713887451574,-644.63,0.00012731,2]
[323317798,1713887451584,-782.33,0.00012731,2]
[323317799,1713887451594,-1215.67,0.00012731,2]
[323317800,1713887451604,-528.62,0.00012731,2]
[323317801,1713887451614,-500.0,0.00012731,2]
[323317802,1713887451623,-500.0,0.00012731,2]
[323317803,1713887451633,-1527.22,0.00012731,2]
[323317804,1713887451644,-565.34,0.00012731,2]
[323317805,1713887451654,-500.0,0.00012731,2]
[323317806,1713887451664,-500.0,0.00012731,2]
[323317807,1713887451675,-2286.68,0.00012731,2]
[323317808,1713887451684,-802.19,0.00012731,2]
[323317809,1713887451694,-500.0,0.00012731,2]
[323317810,1713887451704,-150.0,0.00012731,2]
[323317811,1713887451714,-500.0,0.00012731,2]
[323317812,1713887451724,-839.32,0.00012731,2]
[323317813,1713887451734,-500.0,0.00012731,2]
[323317814,1713887451744,-524.85,0.00012731,2]
[323317815,1713887451754,-500.0,0.00012731,2]
[323317816,1713887451764,-500.0,0.00012731,2]
[323317817,1713887451774,-640.43,0.00012731,2]
[323317818,1713887451784,-617.6,0.00012731,2]
[323317819,1713887451794,-1874.24,0.00012731,2]
[323317820,1713887451805,-150.0,0.00012741,2]
[323317821,1713887451815,-150.0,0.00012746,2]
[323317822,1713887451825,-150.0,0.00012747,2]
[323317823,1713887451839,-150.0,0.00012747,2]
[323317824,1713887451848,-150.0,0.00012749,2]
[323317825,1713887451858,-150.0,0.00012749,2]
[323317826,1713887451868,-150.0,0.0001275,2]
[323317827,1713887451878,-150.0,0.00012752,2]
[323317828,1713887451887,-150.0,0.00012756,2]
[323317829,1713887451897,-150.0,0.00012756,2]
[323317830,1713887451908,-150.0,0.00012757,2]
[323317831,1713887451917,-150.0,0.0001276,2]
[323317832,1713887451928,-150.0,0.00012763,2]
[323317833,1713887451938,-150.0,0.00012767,2]
[323317834,1713887451947,-150.0,0.00012768,2]
[323317835,1713887451957,-150.0,0.00012769,2]
[323317836,1713887451967,-150.0,0.00012771,2]
[323317837,1713887451977,-150.0,0.00012772,2]
[323317838,1713887451986,-150.0,0.00012772,2]
[323317839,1713887451996,-6944.86653751,0.00012773,2]
[323317840,1713887452005,-150.0,0.00012774,2]
[323317841,1713887452015,-150.0,0.00012774,2]
[323317842,1713887452025,-150.0,0.0001278,2]
[323317843,1713887452035,-150.0,0.00012783,2]
[323317844,1713887452044,-150.0,0.00012785,2]
[323317845,1713887452054,-150.0,0.00012785,2]
[323317846,1713887452064,-150.0,0.00012787,2]
[323317847,1713887452074,-150.0,0.00012788,2]
[323317848,1713887452085,-150.0,0.00012789,2]
[323317849,1713887452095,-150.0,0.00012789,2]
[323317850,1713887452105,-150.0,0.00012795,2]
[323317851,1713887452115,-150.0,0.00012796,2]
[323317852,1713887452125,-150.0,0.00012796,2]
[323317853,1713887452135,-155.0,0.000128,2]
[323317854,1713887452145,-150.0,0.00012803,2]
[323317855,1713887452156,-150.0,0.00012805,2]
[323317856,1713887452166,-150.0,0.00012807,2]
[323317857,1713887452177,-150.0,0.00012808,2]
[323317858,1713887452187,-150.0,0.00012811,2]
[323317859,1713887452198,-150.0,0.00012812,2]
[323317860,1713887452208,-150.0,0.00012816,2]
[323317861,1713887452218,-150.0,0.00012817,2]
[323317862,1713887452228,-150.0,0.00012818,2]
[323317863,1713887452238,-150.0,0.00012818,2]
[323317864,1713887452248,-1398.81,0.00012829,2]
[323317865,1713887452258,-4352.87,0.00012829,2]
[323317866,1713887452268,-3447.72,0.00012829,2]
[323317867,1713887452278,-500.0,0.00012831,2]
[323317868,1713887452288,-266.12709249,0.00012831,2]
[323317869,1713887452297,-500.0,0.00012831,2]
[323317870,1713887452307,-500.0,0.00012831,2]
[323317871,1713887452317,-500.0,0.00012831,2]
[323317872,1713887452327,-569.73981884,0.00012831,2]
[323317873,1713887452337,-500.0,0.00012831,2]
[323317874,1713887452347,-500.0,0.00012831,2]
[323317875,1713887452357,-552.08,0.00012831,2]
[323317876,1713887452368,-500.0,0.00012831,2]
[323317877,1713887452382,-500.0,0.00012831,2]
[323317878,1713887452392,-500.0,0.00012831,2]
[323317879,1713887452401,-500.0,0.00012831,2]
[323317880,1713887452410,-500.0,0.00012831,2]
[323317881,1713887452423,-500.0,0.00012831,2]
[323317882,1713887452433,-500.0,0.00012831,2]
[323317883,1713887452446,-646.97,0.00012831,2]
[323317884,1713887452459,-500.0,0.00012831,2]
[323317885,1713887452469,-579.86,0.00012831,2]
[323317886,1713887452479,-500.0,0.00012831,2]
[323317887,1713887452489,-500.0,0.00012831,2]
[323317888,1713887452499,-500.0,0.00012831,2]
[323317889,1713887452508,-500.0,0.00012831,2]
[323317890,1713887452518,-508.73,0.00012831,2]
[323317891,1713887452527,-744.99,0.00012831,2]
[323317892,1713887452538,-1035.46,0.00012831,2]
[323317893,1713887452547,-500.0,0.00012831,2]
[323317894,1713887452557,-500.0,0.00012831,2]
[323317895,1713887452567,-524.76,0.00012831,2]
[323317896,1713887452576,-500.0,0.00012831,2]
[323317897,1713887452586,-500.0,0.00012831,2]
[323317898,1713887452596,-500.0,0.00012831,2]
[323317899,1713887452606,-500.0,0.00012831,2]
[323317900,1713887452616,-632.25,0.00012831,2]
[323317901,1713887452626,-469.95,0.00012831,2]
[323317902,1713887452637,-500.0,0.00012831,2]
[323317903,1713887452647,-500.0,0.00012831,2]
[323317904,1713887452656,-432.81477831,0.00012831,2]
[323317905,1713887452667,-500.0,0.00012831,2]
[323317906,1713887452676,-500.0,0.00012831,2]
[323317907,1713887452686,-500.0,0.00012831,2]
[323317908,1713887452696,-788.31,0.00012831,2]
[323317909,1713887452705,-500.0,0.00012831,2]
[323317910,1713887452714,-500.0,0.00012831,2]
[323317911,1713887452724,-500.0,0.00012831,2]
[323317912,1713887452734,-500.0,0.00012831,2]
[323317913,1713887452744,-500.0,0.00012831,2]
[323317914,1713887452754,-500.0,0.00012831,2]
[323317915,1713887452763,-516.4,0.00012831,2]
[323317916,1713887452774,-500.0,0.00012831,2]
[323317917,1713887452783,-403.52461036,0.00012831,2]
[323317918,1713887452793,-500.0,0.00012831,2]
[323317919,1713887452802,-500.0,0.00012831,2]
[323317920,1713887452813,-150.0,0.00012833,2]
[323317921,1713887452824,-150.0,0.00012833,2]
[323317922,1713887452834,-150.0,0.00012833,2]
[323317923,1713887452844,-150.0,0.00012835,2]
[323317924,1713887452854,-6944.86653751,0.00012837,2]
[323317925,1713887452865,-150.0,0.00012844,2]
[323317926,1713887452875,-150.0,0.00012848,2]
[323317927,1713887452885,-150.0,0.00012854,2]
[323317928,1713887452895,-150.0,0.00012855,2]
[323317929,1713887452904,-150.0,0.0001286,2]
[323317930,1713887452915,-150.0,0.00012863,2]
[323317931,1713887452927,-150.0,0.00012864,2]
[323317932,1713887452937,-150.0,0.00012865,2]
[323317933,1713887452946,-150.0,0.00012867,2]
[323317934,1713887452957,-150.0,0.00012869,2]
[323317935,1713887452967,-150.0,0.00012873,2]
[323317936,1713887452979,-150.0,0.00012873,2]
[323317937,1713887452991,-150.0,0.00012883,2]
[323317938,1713887453002,-150.0,0.00012883,2]
[323317939,1713887453012,-1334.62479108,0.00012886,2]
[323317940,1713887453022,-208.2677438,0.00012886,2]
[323317941,1713887453033,-247.07252518,0.00012886,2]
[323317942,1713887453043,-683.92635897,0.00012886,2]
[323317943,1713887453053,-215.13933441,0.00012886,2]
[323317944,1713887453063,-1334.62479108,0.00012893,2]
[323317945,1713887453073,-247.07252518,0.00012893,2]
[323317946,1713887453082,-1000.0,0.00012894,2]